fUST/lending_fUST_20240813
["ID","MTS","AMOUNT","RATE_DAILY","PERIOD"]
[334722869,1723507858186,-1660.52,0.00015506,2]
[334722870,1723507858201,-500.0,0.00015506,2]
[334722871,1723507858218,-1077.89,0.00015506,2]
[334722872,1723507858232,-7880.3,0.00015506,2]
[334722873,1723507858247,-500.0,0.00015507,2]
[334722874,1723507858261,-500.0,0.00015507,2]
[334722875,1723507858275,-500.0,0.00015507,2]
[334722876,1723507858291,-674.1,0.00015507,2]
[334722877,1723507858304,-500.0,0.00015507,2]
[334722878,1723507858316,-577.84,0.00015507,2]
[334722879,1723507858329,-699.4,0.00015507,2]
[334722880,1723507858343,-629.92,0.00015507,2]
[334722881,1723507858356,-500.0,0.00015507,2]
[334722882,1723507858369,-500.0,0.00015507,2]
[334722883,1723507858381,-500.0,0.00015507,2]
[334722884,1723507858393,-838.38,0.00015507,2]
[334722885,1723507858407,-500.0,0.00015507,2]
[334722886,1723507858421,-500.0,0.00015507,2]
[334722887,1723507858435,-500.0,0.00015507,2]
[334722888,1723507858451,-527.51,0.00015507,2]
[334722889,1723507858465,-500.0,0.00015507,2]
[334722890,1723507858475,-899.59,0.00015507,2]
[334722891,1723507858486,-500.0,0.00015507,2]
[334722892,1723507858496,-662.72,0.00015507,2]
[334722893,1723507858509,-500.0,0.00015507,2]
[334722894,1723507858522,-500.0,0.00015507,2]
[334722895,1723507858534,-930.41,0.00015507,2]
[334722896,1723507858547,-1528.05,0.00015507,2]
[334722897,1723507858559,-796.66,0.00015507,2]
[334722898,1723507858573,-1373.35,0.00015507,2]
[334722899,1723507858584,-500.0,0.00015507,2]
[334722900,1723507858595,-1120.59,0.00015507,2]
[334722901,1723507858606,-843.18,0.00015507,2]
[334722902,1723507858617,-1471.67,0.00015507,2]
[334722903,1723507858629,-500.0,0.00015507,2]
[334722904,1723507858640,-152.81188737,0.00015507,2]
[334722905,1723507858652,-500.0,0.00015507,2]
[334722906,1723507858663,-912.85,0.00015507,2]
[334722907,1723507858675,-1170.09,0.00015507,2]
[334722908,1723507858687,-873.34,0.00015507,2]
[334722909,1723507858701,-500.0,0.00015507,2]
[334722910,1723507858714,-639.61,0.00015507,2]
[334722911,1723507858725,-4137.7,0.00015507,2]
[334722912,1723507858736,-500.0,0.00015507,2]
[334722913,1723507858747,-1462.61,0.00015507,2]
[334722914,1723507858759,-935.03,0.00015507,2]
[334722915,1723507858770,-633.08,0.00015507,2]
[334722916,1723507858783,-680.88,0.00015507,2]
[334722917,1723507858794,-189.86641222,0.00015507,2]
[334722918,1723507858806,-768.08,0.00015507,2]
[334722919,1723507858817,-756.12,0.00015507,2]
[334722920,1723507858828,-500.0,0.00015507,2]
[334722921,1723507858840,-500.0,0.00015507,2]
[334722922,1723507858852,-885.75,0.00015507,2]
[334722923,1723507858865,-1515.15,0.00015507,2]
[334722924,1723507858877,-271.53863008,0.00015507,2]
[334722925,1723507858889,-452.00796534,0.00015507,2]
[334722926,1723507858900,-500.0,0.00015507,2]
[334722927,1723507858911,-530.7,0.00015507,2]
[334722928,1723507858923,-638.77,0.00015517,2]
[334722929,1723507858935,-3783.3,0.00015517,2]
[334722930,1723507858948,-500.0,0.00015517,2]
[334722931,1723507858961,-500.0,0.00015517,2]
[334722932,1723507858972,-1184.95,0.00015517,2]
[334722933,1723507858984,-500.0,0.00015517,2]
[334722934,1723507858995,-574.45,0.00015517,2]
[334722935,1723507859007,-532.3408573,0.00015517,2]
[334722936,1723507859019,-557.25,0.00015517,2]
[334722937,1723507859032,-500.0,0.00015517,2]
[334722938,1723507859045,-1089.69,0.00015517,2]
[334722939,1723507859058,-2080.48,0.00015517,2]
[334722940,1723507859070,-3408.74,0.00015517,2]
[334722941,1723507859083,-1662.81,0.00015517,2]
[334722942,1723507859095,-150.91505608,0.00015517,2]
[334722943,1723507859108,-1141.64,0.00015517,2]
[334722944,1723507859120,-500.0,0.00015517,2]
[334722945,1723507859133,-500.0,0.00015518,2]
[334722946,1723507859146,-752.5,0.00015518,2]
[334722947,1723507859158,-500.0,0.00015518,2]
[334722948,1723507859174,-500.0,0.00015518,2]
[334722949,1723507859187,-500.0,0.00015518,2]
[334722950,1723507859202,-500.0,0.00015518,2]
[334722951,1723507859216,-500.0,0.00015518,2]
[334722952,1723507859228,-989.75,0.00015518,2]
[334722953,1723507859243,-243.82020673,0.00015518,2]
[334722954,1723507859255,-500.0,0.00015518,2]
[334722955,1723507859268,-518.52,0.00015518,2]
[334722956,1723507859281,-500.0,0.00015518,2]
[334722957,1723507859295,-500.0,0.00015518,2]
[334722958,1723507859310,-789.14,0.00015518,2]
[334722959,1723507859323,-500.0,0.00015518,2]
[334722960,1723507859335,-695.85,0.00015518,2]
[334722961,1723507859346,-500.0,0.00015518,2]
[334722962,1723507859358,-500.0,0.00015518,2]
[334722963,1723507859371,-605.11265353,0.00015518,2]
[334722964,1723507859384,-500.0,0.00015518,2]
[334722965,1723507859395,-500.0,0.00015518,2]
[334722966,1723507859407,-500.0,0.00015518,2]
[334722967,1723507859419,-500.0,0.00015518,2]
[334722968,1723507859433,-500.0,0.00015518,2]
[334722969,1723507859446,-550.02,0.00015518,2]
[334722970,1723507859458,-500.0,0.00015518,2]
[334722971,1723507859469,-704.31,0.00015518,2]
[334722972,1723507859480,-701.07,0.00015518,2]
[334722973,1723507859492,-500.0,0.00015518,2]
[334722974,1723507859504,-618.22,0.00015518,2]
[334722975,1723507859515,-500.0,0.00015518,2]
[334722976,1723507859527,-688.92,0.00015518,2]
[334722977,1723507859539,-500.0,0.00015518,2]
[334722978,1723507859550,-488.60789319,0.00015518,2]
[334722979,1723507859714,-2423.01,0.00015518,2]
[334722980,1723507859724,-535.05,0.00015518,2]
[334722981,1723507859734,-500.0,0.00015518,2]
[334722982,1723507859743,-500.0,0.00015518,2]
[334722983,1723507859753,-1062.16,0.00015518,2]
[334722984,1723507859763,-500.0,0.00015518,2]
[334722985,1723507859773,-500.0,0.00015518,2]
[334722986,1723507859783,-500.0,0.00015518,2]
[334722987,1723507859794,-500.0,0.00015518,2]
[334722988,1723507859803,-519.53,0.00015518,2]
[334722989,1723507859813,-537.45,0.00015518,2]
[334722990,1723507859823,-500.0,0.00015518,2]
[334722991,1723507859832,-620.74,0.00015518,2]
[334722992,1723507859842,-718.15,0.00015518,2]
[334722993,1723507859852,-500.0,0.00015518,2]
[334722994,1723507859862,-1075.54,0.00015518,2]
[334722995,1723507859871,-500.0,0.00015518,2]
[334722996,1723507859881,-1420.19,0.00015518,2]
[334722997,1723507859897,-1225.82,0.00015518,2]
[334722998,1723507859912,-1051.48,0.00015518,2]
[334722999,1723507859922,-500.0,0.00015518,2]
[334723000,1723507859933,-6792.66,0.00015518,2]
[334723001,1723507859946,-500.0,0.00015518,2]
[334723002,1723507859956,-500.0,0.00015518,2]
[334723003,1723507859967,-500.0,0.00015518,2]
[334723004,1723507859976,-1340.35,0.00015518,2]
[334723005,1723507859986,-500.0,0.00015518,2]
[334723006,1723507859995,-619.41,0.00015518,2]
[334723007,1723507860005,-774.02,0.00015518,2]
[334723008,1723507860015,-575.86,0.00015518,2]
[334723009,1723507860025,-1466.57,0.00015518,2]
[334723010,1723507860035,-500.0,0.00015518,2]
[334723011,1723507860044,-1374.2,0.00015518,2]
[334723012,1723507860054,-866.13,0.00015518,2]
[334723013,1723507860064,-500.0,0.00015518,2]
[334723014,1723507860074,-550.0,0.00015518,2]
[334723015,1723507860083,-2072.3,0.00015518,2]
[334723016,1723507860093,-1212.29,0.00015518,2]
[334723017,1723507860102,-979.49,0.00015518,2]
[334723018,1723507860112,-500.0,0.00015528,2]
[334723019,1723507860121,-500.0,0.00015528,2]
[334723020,1723507860132,-655.48,0.00015528,2]
[334723021,1723507860141,-600.0,0.00015612,2]
[334723022,1723507860151,-157.0,0.0001566,2]
[334723023,1723507860161,-1204.92,0.00015671,2]
[334723024,1723507860172,-891.86,0.00015671,2]
[334723025,1723507860182,-766.88,0.00015671,2]
[334723026,1723507860191,-35044.64616853,0.00015707,2]
[334723027,1723507860203,-55434.59759481,0.00015707,2]
[334723028,1723507860213,-2126.66267952,0.00015708,2]
[334723029,1723507860223,-2164.74871652,0.00015708,2]
[334723030,1723507860233,-2710.71989764,0.00015708,2]
[334723031,1723507860243,-1164.02523181,0.00015708,2]
[334723032,1723507860252,-1993.66421949,0.00015708,2]
[334723033,1723507860262,-1810.61919836,0.00015708,2]
[334723034,1723507860272,-7008.86868586,0.00015708,2]
[334723035,1723507860281,-1612.28857669,0.00015708,2]
[334723036,1723507860291,-3090.72018399,0.00015708,2]
[334723037,1723507860301,-1384.31526916,0.00015708,2]
[334723038,1723507860310,-9652.40516915,0.00015708,2]
[334723039,1723507860319,-2141.32258556,0.00015708,2]
[334723040,1723507860329,-5238.95624179,0.00015708,2]
[334723041,1723507860338,-20780.14466348,0.00015708,2]
[334723042,1723507860348,-500.0,0.0001577,2]
[334723043,1723507860358,-2071.47,0.0001577,2]
[334723044,1723507860367,-7738.72,0.0001577,2]
[334723045,1723507860376,-1399.62,0.0001577,2]
[334723046,1723507860386,-200.0,0.00015773,2]
[334723047,1723507860395,-200.0,0.00015773,2]
[334723048,1723507860404,-200.0,0.00015773,2]
[334723049,1723507860413,-600.0,0.00015773,2]
[334723050,1723507860422,-891.99,0.0001578,2]
[334723051,1723507860433,-500.0,0.0001578,2]
[334723052,1723507860442,-4531.63,0.0001578,2]
[334723053,1723507860463,-4572.2,0.0001578,2]
[334723054,1723507860473,-1413.72,0.0001578,2]
[334723055,1723507860482,-1535.96,0.0001578,2]
[334723056,1723507860491,-1232.7,0.0001578,2]
[334723057,1723507860500,-1581.75,0.0001578,2]
[334723058,1723507860509,-500.0,0.0001578,2]
[334723059,1723507860518,-1660.52,0.0001578,2]
[334723060,1723507860527,-500.0,0.0001578,2]
[334723061,1723507860536,-1077.89,0.0001578,2]
[334723062,1723507860545,-7880.3,0.0001578,2]
[334723063,1723507860555,-500.0,0.00015781,2]
[334723064,1723507860564,-500.0,0.00015781,2]
[334723065,1723507860575,-500.0,0.00015781,2]
[334723066,1723507860585,-674.1,0.00015781,2]
[334723067,1723507860595,-500.0,0.00015781,2]
[334723068,1723507860605,-577.84,0.00015781,2]
[334723069,1723507860615,-699.4,0.00015781,2]
[334723070,1723507860625,-629.92,0.00015781,2]
[334723071,1723507860635,-500.0,0.00015781,2]
[334723072,1723507860645,-500.0,0.00015781,2]
[334723073,1723507860655,-500.0,0.00015781,2]
[334723074,1723507860665,-838.38,0.00015781,2]
[334723075,1723507860674,-500.0,0.00015781,2]
[334723076,1723507860683,-500.0,0.00015781,2]
[334723077,1723507860695,-500.0,0.00015781,2]
[334723078,1723507860708,-527.51,0.00015781,2]
[334723079,1723507860717,-500.0,0.00015781,2]
[334723080,1723507860727,-899.59,0.00015781,2]
[334723081,1723507860737,-500.0,0.00015781,2]
[334723082,1723507860747,-662.72,0.00015781,2]
[334723083,1723507860760,-500.0,0.00015781,2]
[334723084,1723507860770,-500.0,0.00015781,2]
[334723085,1723507860781,-930.41,0.00015781,2]
[334723086,1723507860791,-1528.05,0.00015781,2]
[334723087,1723507860800,-796.66,0.00015781,2]
[334723088,1723507860812,-1373.35,0.00015781,2]
[334723089,1723507860822,-500.0,0.00015781,2]
[334723090,1723507860833,-1120.59,0.00015781,2]
[334723091,1723507860843,-843.18,0.00015781,2]
[334723092,1723507860855,-1471.67,0.00015781,2]
[334723093,1723507860864,-500.0,0.00015781,2]
[334723094,1723507860874,-500.0,0.00015781,2]
[334723095,1723507860883,-912.85,0.00015781,2]
[334723096,1723507860892,-1170.09,0.00015781,2]
[334723097,1723507860902,-873.34,0.00015781,2]
[334723098,1723507860912,-500.0,0.00015781,2]
[334723099,1723507860921,-639.61,0.00015781,2]
[334723100,1723507860930,-4137.7,0.00015781,2]
[334723101,1723507860940,-500.0,0.00015781,2]
[334723102,1723507860952,-1462.61,0.00015781,2]
[334723103,1723507860961,-935.03,0.00015781,2]
[334723104,1723507860970,-633.08,0.00015781,2]
[334723105,1723507860979,-680.88,0.00015781,2]
[334723106,1723507860989,-768.08,0.00015781,2]
[334723107,1723507860998,-756.12,0.00015781,2]
[334723108,1723507861009,-500.0,0.00015781,2]
[334723109,1723507861018,-500.0,0.00015781,2]
[334723110,1723507861028,-885.75,0.00015781,2]
[334723111,1723507861040,-1515.15,0.00015781,2]
[334723112,1723507861050,-500.0,0.00015781,2]
[334723113,1723507861061,-530.7,0.00015781,2]
[334723114,1723507861071,-5729.36921459,0.00015788,2]
[334723115,1723507861080,-638.77,0.00015791,2]
[334723116,1723507861090,-3783.3,0.00015791,2]
[334723117,1723507861100,-500.0,0.00015791,2]
[334723118,1723507861109,-500.0,0.00015791,2]
[334723119,1723507861119,-1184.95,0.00015791,2]
[334723120,1723507861129,-500.0,0.00015791,2]
[334723121,1723507861138,-574.45,0.00015791,2]
[334723122,1723507861148,-557.25,0.00015791,2]
[334723123,1723507861158,-177.4132855,0.00015791,2]
[334723124,1723507861168,-1089.69,0.00015791,2]
[334723125,1723507861177,-2080.48,0.00015791,2]
[334723126,1723507861187,-3408.74,0.00015791,2]
[334723127,1723507861200,-1662.81,0.00015791,2]
[334723128,1723507861210,-1141.64,0.00015791,2]
[334723129,1723507861219,-214.01081699,0.00015791,2]
[334723130,1723507861230,-500.0,0.00015792,2]
[334723131,1723507861239,-752.5,0.00015792,2]
[334723132,1723507861251,-500.0,0.00015792,2]
[334723133,1723507861261,-500.0,0.00015792,2]
[334723134,1723507861270,-456.75643609,0.00015792,2]
[334723135,1723507861281,-500.0,0.00015792,2]
[334723136,1723507861290,-500.0,0.00015792,2]
[334723137,1723507861300,-989.75,0.00015792,2]
[334723138,1723507861309,-597.65443336,0.00015792,2]
[334723139,1723507861318,-518.52,0.00015792,2]
[334723140,1723507861328,-500.0,0.00015792,2]
[334723141,1723507861337,-500.0,0.00015792,2]
[334723142,1723507861347,-789.14,0.00015792,2]
[334723143,1723507861358,-500.0,0.00015792,2]
[334723144,1723507861368,-695.85,0.00015792,2]
[334723145,1723507861377,-500.0,0.00015792,2]
[334723146,1723507861387,-500.0,0.00015792,2]
[334723147,1723507861397,-500.0,0.00015792,2]
[334723148,1723507861406,-500.0,0.00015792,2]
[334723149,1723507861416,-500.0,0.00015792,2]
[334723150,1723507861426,-500.0,0.00015792,2]
[334723151,1723507861436,-500.0,0.00015792,2]
[334723152,1723507861447,-550.02,0.00015792,2]
[334723153,1723507861457,-500.0,0.00015792,2]
[334723154,1723507861467,-704.31,0.00015792,2]
[334723155,1723507861477,-701.07,0.00015792,2]
[334723156,1723507861486,-500.0,0.00015792,2]
[334723157,1723507861495,-618.22,0.00015792,2]
[334723158,1723507861505,-500.0,0.00015792,2]
[334723159,1723507861515,-688.92,0.00015792,2]
[334723160,1723507861525,-500.0,0.00015792,2]
[334723161,1723507861535,-2423.01,0.00015792,2]
[334723162,1723507861544,-535.05,0.00015792,2]
[334723163,1723507861554,-500.0,0.00015792,2]
[334723164,1723507861564,-554.33760659,0.00015792,2]
[334723165,1723507861573,-1062.16,0.00015792,2]
[334723166,1723507861583,-500.0,0.00015792,2]
[334723167,1723507861592,-602.27803586,0.00015792,2]
[334723168,1723507861602,-500.0,0.00015792,2]
[334723169,1723507861611,-500.0,0.00015792,2]
[334723170,1723507861621,-519.53,0.00015792,2]
[334723171,1723507861633,-537.45,0.00015792,2]
[334723172,1723507861644,-500.0,0.00015792,2]
[334723173,1723507861654,-620.74,0.00015792,2]
[334723174,1723507861663,-718.15,0.00015792,2]
[334723175,1723507861673,-500.0,0.00015792,2]
[334723176,1723507861682,-1075.54,0.00015792,2]
[334723177,1723507861696,-500.0,0.00015792,2]
[334723178,1723507861706,-1420.19,0.00015792,2]
[334723179,1723507861716,-1225.82,0.00015792,2]
[334723180,1723507861726,-1051.48,0.00015792,2]
[334723181,1723507861738,-500.0,0.00015792,2]
[334723182,1723507861747,-6792.66,0.00015792,2]
[334723183,1723507861757,-500.0,0.00015792,2]
[334723184,1723507861767,-500.0,0.00015792,2]
[334723185,1723507861778,-500.0,0.00015792,2]
[334723186,1723507861787,-1340.35,0.00015792,2]
[334723187,1723507861797,-500.0,0.00015792,2]
[334723188,1723507861807,-619.41,0.00015792,2]
[334723189,1723507861816,-774.02,0.00015792,2]
[334723190,1723507861826,-575.86,0.00015792,2]
[334723191,1723507861835,-1466.57,0.00015792,2]
[334723192,1723507861845,-500.0,0.00015792,2]
[334723193,1723507861854,-1374.2,0.00015792,2]
[334723194,1723507861864,-866.13,0.00015792,2]
[334723195,1723507861874,-500.0,0.00015792,2]
[334723196,1723507861884,-550.0,0.00015792,2]
[334723197,1723507861894,-2072.3,0.00015792,2]
[334723198,1723507861904,-1212.29,0.00015792,2]
[334723199,1723507861914,-979.49,0.00015792,2]
[334723200,1723507861924,-500.0,0.00015802,2]
[334723201,1723507861934,-500.0,0.00015802,2]
[334723202,1723507861946,-655.48,0.00015802,2]
[334723203,1723507861956,-400.0,0.00015842,2]
[334723204,1723507861966,-400.0,0.00015842,2]
[334723205,1723507861976,-400.0,0.00015842,2]
[334723206,1723507861986,-400.0,0.00015842,2]
[334723207,1723507861995,-589.133361,0.00015887,2]
[334723208,1723507862005,-153.0,0.00015887,2]
[334723209,1723507862015,-153.0,0.0001589,2]
[334723210,1723507862025,-153.0,0.0001589,2]
[334723211,1723507862035,-153.0,0.0001589,2]
[334723212,1723507862046,-153.0,0.0001589,2]
[334723213,1723507862057,-153.0,0.0001589,2]
[334723214,1723507862066,-306.0,0.0001589,2]
[334723215,1723507862075,-600.0,0.00015934,2]
[334723216,1723507862085,-1204.92,0.00015945,2]
[334723217,1723507862104,-891.86,0.00015945,2]
[334723218,1723507862116,-766.88,0.00015945,2]
[334723219,1723507862127,-500.0,0.00015964,2]
[334723220,1723507862137,-267.9524887,0.00015977,2]
[334723221,1723507862147,-267.9524887,0.00015977,2]
[334723222,1723507862157,-267.9524887,0.00015977,2]
[334723223,1723507862167,-267.9524887,0.00015977,2]
[334723224,1723507862178,-267.9524887,0.00015977,2]
[334723225,1723507862189,-267.9524887,0.00015977,2]
[334723226,1723507862202,-267.9524887,0.00015977,2]
[334723227,1723507862212,-267.9524887,0.00015977,2]
[334723228,1723507862222,-267.9524887,0.00015977,2]
[334723229,1723507862235,-267.9524887,0.00015977,2]
[334723230,1723507862247,-267.9524887,0.00015977,2]
[334723231,1723507862257,-267.9524887,0.00015977,2]
[334723232,1723507862266,-267.9524887,0.00015977,2]
[334723233,1723507862276,-267.9524887,0.00015977,2]
[334723234,1723507862286,-267.9524887,0.00015977,2]
[334723235,1723507862296,-457.768516,0.00015977,2]
[334723236,1723507862306,-267.9524887,0.00015977,2]
[334723237,1723507862316,-272.9218841,0.00015977,2]
[334723238,1723507862327,-1000.0,0.00016,3]
[334723239,1723507862337,-3000.0,0.00016,2]
[334723240,1723507862349,-3000.0,0.0001601,2]
[334723241,1723507862359,-3000.0,0.0001602,2]
[334723242,1723507862371,-3000.0,0.0001603,2]
[334723243,1723507862381,-1364.76856629,0.00016038,2]
[334723244,1723507862391,-154.76012181,0.00016038,2]
[334723245,1723507862401,-42383.12825852,0.00016038,2]
[334723246,1723507862411,-3000.0,0.0001604,2]
[334723247,1723507862421,-500.0,0.00016044,2]
[334723248,1723507862434,-2071.47,0.00016044,2]
[334723249,1723507862446,-7738.72,0.00016044,2]
[334723250,1723507862456,-1399.62,0.00016044,2]
[334723251,1723507862467,-3000.0,0.0001605,2]
[334723252,1723507862477,-891.99,0.00016054,2]
[334723253,1723507862648,-500.0,0.00016054,2]
[334723254,1723507862660,-4531.63,0.00016054,2]
[334723255,1723507862670,-4572.2,0.00016054,2]
[334723256,1723507862680,-1413.72,0.00016054,2]
[334723257,1723507862690,-1535.96,0.00016054,2]
[334723258,1723507862709,-1232.7,0.00016054,2]
[334723259,1723507862719,-1581.75,0.00016054,2]
[334723260,1723507862730,-500.0,0.00016054,2]
[334723261,1723507862740,-1660.52,0.00016054,2]
[334723262,1723507862750,-500.0,0.00016054,2]
[334723263,1723507862759,-1077.89,0.00016054,2]
[334723264,1723507862768,-7880.3,0.00016054,2]
[334723265,1723507862778,-500.0,0.00016055,2]
[334723266,1723507862789,-500.0,0.00016055,2]
[334723267,1723507862800,-212.02018946,0.00016055,2]
[334723268,1723507862810,-674.1,0.00016055,2]
[334723269,1723507862820,-500.0,0.00016055,2]
[334723270,1723507862830,-577.84,0.00016055,2]
[334723271,1723507862839,-699.4,0.00016055,2]
[334723272,1723507862849,-629.92,0.00016055,2]
[334723273,1723507862860,-500.0,0.00016055,2]
[334723274,1723507862871,-500.0,0.00016055,2]
[334723275,1723507862881,-500.0,0.00016055,2]
[334723276,1723507862890,-838.38,0.00016055,2]
[334723277,1723507862899,-500.0,0.00016055,2]
[334723278,1723507862909,-500.0,0.00016055,2]
[334723279,1723507862919,-500.0,0.00016055,2]
[334723280,1723507862929,-527.51,0.00016055,2]
[334723281,1723507862939,-500.0,0.00016055,2]
[334723282,1723507862953,-899.59,0.00016055,2]
[334723283,1723507862963,-500.0,0.00016055,2]
[334723284,1723507862972,-662.72,0.00016055,2]
[334723285,1723507862981,-500.0,0.00016055,2]
[334723286,1723507862990,-500.0,0.00016055,2]
[334723287,1723507863000,-930.41,0.00016055,2]
[334723288,1723507863010,-1528.05,0.00016055,2]
[334723289,1723507863019,-796.66,0.00016055,2]
[334723290,1723507863029,-1373.35,0.00016055,2]
[334723291,1723507863038,-323.9128263,0.00016055,2]
[334723292,1723507863047,-1120.59,0.00016055,2]
[334723293,1723507863057,-843.18,0.00016055,2]
[334723294,1723507863066,-1471.67,0.00016055,2]
[334723295,1723507863075,-500.0,0.00016055,2]
[334723296,1723507863084,-500.0,0.00016055,2]
[334723297,1723507863095,-912.85,0.00016055,2]
[334723298,1723507863105,-1170.09,0.00016055,2]
[334723299,1723507863115,-873.34,0.00016055,2]
[334723300,1723507863125,-500.0,0.00016055,2]
[334723301,1723507863134,-639.61,0.00016055,2]
[334723302,1723507863144,-4137.7,0.00016055,2]
[334723303,1723507863154,-500.0,0.00016055,2]
[334723304,1723507863164,-1462.61,0.00016055,2]
[334723305,1723507863174,-935.03,0.00016055,2]
[334723306,1723507863184,-633.08,0.00016055,2]
[334723307,1723507863198,-680.88,0.00016055,2]
[334723308,1723507863208,-768.08,0.00016055,2]
[334723309,1723507863217,-756.12,0.00016055,2]
[334723310,1723507863227,-500.0,0.00016055,2]
[334723311,1723507863238,-500.0,0.00016055,2]
[334723312,1723507863248,-885.75,0.00016055,2]
[334723313,1723507863257,-1515.15,0.00016055,2]
[334723314,1723507863267,-500.0,0.00016055,2]
[334723315,1723507863276,-530.7,0.00016055,2]
[334723316,1723507863285,-3000.0,0.0001606,2]
[334723317,1723507863295,-638.77,0.00016065,2]
[334723318,1723507863304,-3783.3,0.00016065,2]
[334723319,1723507863313,-500.0,0.00016065,2]
[334723320,1723507863323,-500.0,0.00016065,2]
[334723321,1723507863332,-1184.95,0.00016065,2]
[334723322,1723507863342,-500.0,0.00016065,2]
[334723323,1723507863351,-574.45,0.00016065,2]
[334723324,1723507863360,-557.25,0.00016065,2]
[334723325,1723507863369,-1089.69,0.00016065,2]
[334723326,1723507863379,-2080.48,0.00016065,2]
[334723327,1723507863389,-3408.74,0.00016065,2]
[334723328,1723507863399,-1662.81,0.00016065,2]
[334723329,1723507863408,-1141.64,0.00016065,2]
[334723330,1723507863417,-500.0,0.00016066,2]
[334723331,1723507863427,-752.5,0.00016066,2]
[334723332,1723507863436,-500.0,0.00016066,2]
[334723333,1723507863448,-500.0,0.00016066,2]
[334723334,1723507863457,-500.0,0.00016066,2]
[334723335,1723507863467,-500.0,0.00016066,2]
[334723336,1723507863477,-989.75,0.00016066,2]
[334723337,1723507863486,-518.52,0.00016066,2]
[334723338,1723507863496,-500.0,0.00016066,2]
[334723339,1723507863506,-500.0,0.00016066,2]
[334723340,1723507863516,-789.14,0.00016066,2]
[334723341,1723507863526,-500.0,0.00016066,2]
[334723342,1723507863537,-695.85,0.00016066,2]
[334723343,1723507863548,-500.0,0.00016066,2]
[334723344,1723507863557,-500.0,0.00016066,2]
[334723345,1723507863566,-500.0,0.00016066,2]
[334723346,1723507863575,-500.0,0.00016066,2]
[334723347,1723507863585,-500.0,0.00016066,2]
[334723348,1723507863594,-500.0,0.00016066,2]
[334723349,1723507863603,-500.0,0.00016066,2]
[334723350,1723507863613,-550.02,0.00016066,2]
[334723351,1723507863622,-500.0,0.00016066,2]
[334723352,1723507863631,-704.31,0.00016066,2]
[334723353,1723507863641,-701.07,0.00016066,2]
[334723354,1723507863651,-500.0,0.00016066,2]
[334723355,1723507863660,-618.22,0.00016066,2]
[334723356,1723507863670,-500.0,0.00016066,2]
[334723357,1723507863679,-688.92,0.00016066,2]
[334723358,1723507863689,-500.0,0.00016066,2]
[334723359,1723507863700,-2423.01,0.00016066,2]
[334723360,1723507863714,-535.05,0.00016066,2]
[334723361,1723507863723,-500.0,0.00016066,2]
[334723362,1723507863732,-1062.16,0.00016066,2]
[334723363,1723507863742,-500.0,0.00016066,2]
[334723364,1723507863753,-500.0,0.00016066,2]
[334723365,1723507863762,-468.95202958,0.00016066,2]
[334723366,1723507863771,-519.53,0.00016066,2]
[334723367,1723507863781,-537.45,0.00016066,2]
[334723368,1723507863791,-500.0,0.00016066,2]